bitfinex-derivatives/quotes_BTCF0:USTF0_20250527
["timestamp","ask_amount","ask_price","bid_price","bid_amount"]
[1748350977394,1.0985348,109660.0,109650.0,0.93147937]
[1748350979191,1.0985348,109660.0,109650.0,0.93143055]
[1748350979897,1.0985348,109660.0,109650.0,0.87833122]
[1748350981691,0.7685348,109660.0,109650.0,0.87833122]
[1748350982199,0.7685348,109660.0,109650.0,0.72432094]
[1748350982397,0.7685348,109660.0,109650.0,0.90663914]
[1748350982697,0.7685348,109660.0,109650.0,0.903411]
[1748350982888,0.7685348,109660.0,109650.0,0.90663891]
[1748350983792,1.0885348,109660.0,109650.0,0.90663891]
[1748350984087,1.09292662,109660.0,109650.0,0.90663891]
[1748350984294,1.09292662,109660.0,109650.0,1.26743891]
[1748350985296,1.09292662,109660.0,109650.0,1.32054029]
[1748350985497,1.09292662,109660.0,109650.0,1.31854029]
[1748350985697,1.09292662,109660.0,109650.0,1.31954029]
[1748350985906,1.09292662,109660.0,109650.0,1.19094215]
[1748350986091,1.09292662,109660.0,109650.0,1.31854029]
[1748350986396,1.09392662,109660.0,109650.0,1.38823906]
[1748350987193,1.09392662,109660.0,109650.0,1.38623906]
[1748350987498,1.09392662,109660.0,109650.0,0.93051825]
[1748350987894,1.09392662,109660.0,109650.0,1.10989165]
[1748350988895,1.09392662,109660.0,109650.0,1.13999165]
[1748350989088,1.09392662,109660.0,109650.0,0.98251537]
[1748350990204,1.12632662,109660.0,109650.0,0.98251537]
[1748350991088,1.48712662,109660.0,109650.0,0.98251537]
[1748350991603,1.12632662,109660.0,109650.0,0.98251537]
[1748350992706,1.12632662,109660.0,109650.0,0.80314197]
[1748350993009,1.12632662,109660.0,109650.0,0.98251537]
[1748350994007,1.48712662,109660.0,109650.0,0.98262446]
[1748350994299,1.12632662,109660.0,109650.0,0.80001616]
[1748350994508,1.12632662,109660.0,109650.0,0.97938956]
[1748350995401,1.12632662,109660.0,109650.0,0.98585486]
[1748350995798,1.12632662,109660.0,109650.0,0.89468926]
[1748350996000,1.63410002,109660.0,109650.0,0.89468926]
[1748350996301,1.48502662,109660.0,109650.0,0.89901357]
[1748350996501,1.48502662,109660.0,109650.0,0.86601357]
[1748350997403,1.48498662,109660.0,109650.0,0.86627444]
[1748350997796,1.48498662,109660.0,109650.0,0.89867444]
[1748350999005,1.48498662,109660.0,109650.0,0.95218476]
[1748350999504,1.48498662,109660.0,109650.0,0.89867444]
[1748351000608,1.12418662,109660.0,109650.0,0.89867444]
[1748351001203,1.48498662,109660.0,109650.0,0.89867444]
[1748351001398,1.1197948,109660.0,109650.0,0.8986688]
[1748351001803,1.4805948,109660.0,109650.0,0.8986688]
[1748351002407,1.48498662,109660.0,109650.0,0.8986688]
[1748351004005,1.48498662,109660.0,109650.0,0.7192954]
[1748351004199,1.48498662,109660.0,109650.0,0.8986688]
[1748351004606,1.48498662,109660.0,109650.0,0.7192954]
[1748351004812,1.48486662,109660.0,109650.0,0.9521746]
[1748351005205,1.48486662,109660.0,109650.0,1.00304204]
[1748351005406,1.48486662,109660.0,109650.0,1.05654774]
[1748351005606,1.48486662,109660.0,109650.0,0.95217284]
[1748351007221,1.48486662,109660.0,109650.0,0.84735477]
[1748351007426,1.48486662,109660.0,109650.0,0.84088947]
[1748351008010,1.48486662,109660.0,109650.0,0.8943924]
[1748351008215,1.48486662,109660.0,109650.0,0.85170126]
[1748351008423,1.48486662,109660.0,109650.0,0.89868689]
[1748351009324,1.48486662,109660.0,109650.0,0.89868854]
[1748351012628,1.49877618,109660.0,109650.0,0.89868854]
[1748351013224,1.49877618,109660.0,109650.0,1.10516627]
[1748351013424,1.49877618,109660.0,109650.0,1.05169049]
[1748351015529,1.49877618,109660.0,109650.0,1.0473672]
[1748351015728,1.49877618,109660.0,109650.0,0.8679938]
[1748351015932,1.48486662,109660.0,109650.0,0.8679938]
[1748351016433,1.54171917,109660.0,109650.0,0.87241324]
[1748351017028,1.54172096,109660.0,109650.0,0.87241338]
[1748351017219,1.72109436,109660.0,109650.0,0.50613667]
[1748351017419,1.8261712,109660.0,109650.0,0.44907711]
[1748351017627,1.91145002,109660.0,109650.0,0.22381479]
[1748351017824,2.02510108,109660.0,109650.0,0.22381479]
[1748351018025,1.88296792,109660.0,109650.0,0.22381479]
[1748351018236,1.88296792,109660.0,109650.0,0.31350962]
[1748351018734,1.88296792,109660.0,109650.0,0.21300667]
[1748351018735,1.85454021,109660.0,109650.0,0.21300667]
[1748351018926,1.85454021,109660.0,109650.0,0.25998239]
[1748351020029,1.85454021,109660.0,109650.0,0.29308239]
[1748351022225,1.43314021,109660.0,109650.0,0.29308239]
[1748351022433,1.85442021,109660.0,109650.0,0.29308239]
[1748351022623,1.85442021,109660.0,109650.0,0.29304238]
[1748351022837,1.91118538,109660.0,109650.0,0.29304238]
[1748351023028,1.91118538,109660.0,109650.0,0.32504238]
[1748351024137,1.91118538,109660.0,109650.0,0.23203571]
[1748351024327,1.73181198,109660.0,109650.0,0.23203571]
[1748351024525,1.91106538,109660.0,109650.0,0.41436711]
[1748351025635,1.81986938,109660.0,109650.0,0.41436711]
[1748351025834,1.64049598,109660.0,109650.0,0.41436711]
[1748351026035,1.81986938,109660.0,109650.0,0.41436711]
[1748351027143,1.81986938,109660.0,109650.0,0.44486711]
[1748351027933,1.81986938,109660.0,109650.0,0.26253571]
[1748351028135,1.81986938,109660.0,109650.0,0.44486701]
[1748351028736,1.82086938,109660.0,109650.0,0.44486701]
[1748351028932,1.82186938,109660.0,109650.0,0.44486701]
[1748351029335,1.82186938,109660.0,109650.0,0.26253571]
[1748351031942,1.82186938,109660.0,109650.0,0.23203571]
[1748351034135,1.82186938,109660.0,109650.0,0.23202405]
[1748351035834,1.76510421,109660.0,109650.0,0.23202405]
[1748351037044,1.76510421,109660.0,109650.0,0.20002405]
[1748351037446,1.76510421,109660.0,109650.0,0.12]
[1748351037748,1.67988086,109660.0,109650.0,0.12]
[1748351039237,1.67988086,109660.0,109650.0,0.1516]
[1748351039451,1.67988086,109660.0,109650.0,0.12]
[1748351040745,1.37225192,109660.0,109650.0,0.1516]
[1748351040935,1.79353192,109660.0,109650.0,0.1821]
[1748351042650,1.79353192,109660.0,109650.0,0.22905892]
[1748351043449,1.79353192,109660.0,109650.0,0.19855892]
[1748351044052,1.79353192,109660.0,109650.0,0.1516]
[1748351046957,1.79353192,109660.0,109650.0,0.19856755]
[1748351047254,1.79353192,109660.0,109650.0,0.23096755]
[1748351048954,1.79353192,109660.0,109650.0,0.23098027]
[1748351049754,1.79353192,109660.0,109650.0,0.19858027]
[1748351050344,1.79353192,109660.0,109650.0,0.1516]
[1748351051358,1.79353192,109660.0,109650.0,0.19857832]
[1748351051562,1.79353192,109660.0,109650.0,0.16187592]
[1748351052056,2.82793192,109660.0,109650.0,0.16187592]
[1748351052647,2.82793192,109660.0,109650.0,0.16187326]
[1748351054360,2.82793192,109660.0,109650.0,0.25487993]
[1748351054564,2.82793192,109660.0,109650.0,0.16187326]
[1748351054954,2.82793192,109660.0,109650.0,0.19437326]
[1748351056059,2.82793192,109660.0,109650.0,0.1473976]
[1748351056267,2.82793192,109660.0,109640.0,0.12554359]
[1748351056268,0.1823315,109650.0,109640.0,0.03253692]
[1748351056557,1.40970288,109650.0,109640.0,0.11503692]
[1748351056861,1.3569783,109650.0,109640.0,0.08263692]
[1748351057565,1.7782183,109650.0,109640.0,0.08263692]
[1748351058765,1.4194715,109650.0,109640.0,0.08263692]
[1748351059060,1.67999596,109650.0,109640.0,0.12960253]
[1748351059570,1.67999596,109650.0,109640.0,0.19370253]
[1748351060862,0.9031315,109650.0,109640.0,0.57955366]
[1748351061063,1.86936738,109650.0,109640.0,0.67262934]
[1748351061266,1.92628886,109650.0,109640.0,0.67262934]
[1748351061668,1.92628886,109650.0,109640.0,0.47651902]
[1748351061858,1.53764886,109650.0,109640.0,0.47651902]
[1748351062058,1.95888886,109650.0,109640.0,0.47651902]
[1748351062870,2.13826226,109650.0,109640.0,0.38351235]
[1748351063360,2.13826226,109650.0,109640.0,0.3835172]
[1748351063560,2.13826226,109650.0,109640.0,0.47643936]
[1748351063958,1.95888886,109650.0,109640.0,0.47643936]
[1748351064159,1.17684886,109650.0,109640.0,0.65878746]
[1748351064359,1.56536886,109650.0,109640.0,0.84209833]
[1748351064565,1.56548886,109650.0,109640.0,0.84209833]
[1748351064760,1.48017298,109650.0,109640.0,0.84447617]
[1748351064960,1.56548886,109650.0,109640.0,0.84447617]
[1748351065970,1.59838886,109650.0,109640.0,0.84447617]
[1748351066272,1.04524886,109650.0,109640.0,0.84447617]
[1748351066577,1.04888738,109650.0,109640.0,1.46257406]
[1748351066757,1.04876738,109650.0,109640.0,1.57879781]
[1748351066960,0.9636915,109650.0,109640.0,1.58543051]
[1748351067265,0.9636915,109650.0,109640.0,1.58543276]
[1748351067465,0.9636915,109650.0,109640.0,1.57880006]
[1748351068167,0.9636915,109650.0,109640.0,1.21800006]
[1748351068673,0.9636515,109650.0,109640.0,0.81221747]
[1748351068867,0.9636515,109650.0,109640.0,1.0186952]
[1748351069773,0.9636515,109650.0,109640.0,0.90247145]
[1748351070966,0.9636515,109650.0,109640.0,0.89911597]
[1748351071577,0.7136515,109650.0,109640.0,0.89911597]
[1748351071758,0.7136515,109650.0,109640.0,0.93845798]
[1748351071962,0.7136515,109650.0,109640.0,0.94176895]
[1748351072264,0.2924515,109650.0,109640.0,0.84888035]
[1748351072467,0.7136515,109650.0,109640.0,0.84888035]
[1748351074672,0.9136515,109650.0,109640.0,0.84888035]
[1748351074972,0.6336515,109650.0,109640.0,0.84886307]
[1748351075174,0.6336515,109650.0,109640.0,0.94175167]
[1748351075776,0.94804332,109650.0,109640.0,0.94175167]
[1748351076366,0.94804332,109650.0,109640.0,0.90238246]
[1748351076566,0.94804332,109650.0,109640.0,1.00690147]
[1748351076963,0.94804332,109650.0,109640.0,0.95658381]
[1748351077165,0.97944332,109650.0,109640.0,1.00689284]
[1748351078377,0.97944332,109650.0,109640.0,0.90237383]
[1748351078576,0.97944332,109650.0,109640.0,1.00689284]
[1748351078765,1.01004332,109650.0,109640.0,0.95988697]
[1748351078965,1.01004332,109650.0,109640.0,0.8018538]
[1748351081977,1.37084332,109650.0,109640.0,0.8018538]
[1748351082475,1.37084332,109650.0,109640.0,0.79412583]
[1748351082670,1.37084332,109650.0,109640.0,0.79743335]
[1748351083265,1.01004332,109650.0,109640.0,0.79743335]
[1748351083476,1.37084332,109650.0,109640.0,0.79743335]
[1748351084980,1.40394332,109650.0,109640.0,0.79743335]
[1748351085168,1.40394332,109650.0,109640.0,0.84884819]
[1748351086178,1.40394332,109650.0,109640.0,0.81434194]
[1748351086370,1.40394332,109650.0,109640.0,0.81764941]
[1748351089781,1.40394332,109650.0,109640.0,0.81765169]
[1748351091474,1.40394332,109650.0,109640.0,0.87122339]
[1748351092382,1.4607448,109650.0,109640.0,1.05060046]
[1748351093284,1.4607448,109650.0,109640.0,1.04729071]
[1748351093675,1.4607448,109650.0,109640.0,0.99371901]
[1748351096178,1.4607448,109650.0,109640.0,0.81434194]
[1748351096377,1.4607448,109650.0,109640.0,0.82097464]
[1748351096985,1.4607448,109650.0,109640.0,0.82106177]
[1748351097284,1.4605848,109650.0,109640.0,1.00043884]
[1748351098978,1.4605848,109650.0,109640.0,0.99380614]
[1748351099488,1.0395448,109650.0,109640.0,0.99380614]
[1748351099682,1.5593848,109650.0,109640.0,0.94672248]
[1748351101889,1.5593848,109650.0,109640.0,0.97922248]
[1748351103389,1.5593848,109650.0,109640.0,1.12590502]
[1748351103890,1.5593848,109650.0,109640.0,0.89944482]
[1748351104084,1.73876187,109650.0,109640.0,1.00043869]
[1748351105189,1.0394248,109650.0,109640.0,1.00043869]
[1748351105387,1.5593448,109650.0,109640.0,1.00043869]
[1748351107693,1.5593448,109650.0,109640.0,1.00044121]
[1748351107896,1.5593448,109650.0,109640.0,0.82106414]
[1748351108283,1.5593448,109650.0,109640.0,0.76734541]
[1748351111499,1.5593448,109650.0,109640.0,0.77397811]
[1748351112388,1.73872187,109650.0,109640.0,0.77397811]
[1748351112588,1.73872187,109650.0,109640.0,0.76734541]
[1748351112789,1.73868187,109650.0,109640.0,0.76734541]
[1748351112996,1.5593048,109650.0,109640.0,0.76734541]
[1748351116397,1.73868187,109650.0,109640.0,0.86700396]
[1748351116596,1.73868187,109650.0,109640.0,0.91409505]
[1748351117400,1.21880187,109650.0,109640.0,0.91409505]
[1748351117586,1.73856187,109650.0,109640.0,0.91409505]
[1748351118199,1.73856187,109650.0,109640.0,0.9792123]
[1748351119306,1.73856187,109650.0,109640.0,0.87849712]
[1748351119607,1.73856187,109650.0,109640.0,0.979214]
[1748351119797,1.73856187,109650.0,109640.0,0.87469499]
[1748351119999,1.73856187,109650.0,109640.0,0.99091874]
[1748351120195,1.73856187,109650.0,109640.0,0.87469499]
[1748351120395,1.73856187,109650.0,109640.0,0.99091874]
[1748351122602,1.73856187,109650.0,109640.0,1.03032314]
[1748351122802,1.73856187,109650.0,109640.0,0.91409939]
[1748351123002,1.73856187,109650.0,109640.0,0.91409863]
[1748351123510,1.73856187,109650.0,109640.0,0.90746593]
[1748351125107,1.73856187,109650.0,109640.0,0.81443704]
[1748351125309,1.73856187,109650.0,109640.0,0.90746593]
[1748351126009,1.73848187,109650.0,109640.0,0.90746593]
[1748351126615,1.73848187,109650.0,109640.0,0.90746515]
[1748351127501,1.73848187,109650.0,109640.0,0.81443626]
[1748351127811,1.5591048,109650.0,109640.0,0.99381333]
[1748351128105,1.5591048,109650.0,109640.0,1.02581333]
[1748351131409,1.5591048,109650.0,109640.0,1.03244603]
[1748351131814,1.5591048,109650.0,109640.0,1.01244603]
[1748351131815,1.5391048,109650.0,109640.0,1.01244603]
[1748351132110,1.1783048,109650.0,109640.0,1.01244603]
[1748351132509,1.1783048,109650.0,109640.0,1.06606692]
[1748351132813,1.1783048,109650.0,109640.0,1.17072442]
[1748351133916,0.7574648,109650.0,109640.0,1.17072442]
[1748351134218,1.1451648,109650.0,109640.0,1.17072442]
[1748351134419,1.1451648,109650.0,109640.0,1.17072266]
[1748351136711,1.1451648,109650.0,109640.0,1.06606516]
[1748351137216,1.1451648,109650.0,109640.0,1.01244434]
[1748351137412,1.08836332,109650.0,109640.0,0.9543029]
[1748351137618,1.44916332,109650.0,109640.0,0.9543029]
[1748351137919,1.47986332,109650.0,109640.0,0.9543029]
[1748351138115,1.65924039,109650.0,109640.0,0.9543029]
[1748351140311,1.65924039,109650.0,109640.0,1.00139278]
[1748351140515,1.65924039,109650.0,109640.0,1.09441864]
[1748351140716,1.71609371,109650.0,109640.0,1.10547767]
[1748351141115,1.71609371,109650.0,109640.0,1.01245181]
[1748351141311,1.71609371,109650.0,109640.0,0.96536193]
[1748351141517,1.71609371,109650.0,109640.0,1.01245184]
[1748351145017,1.71609371,109650.0,109640.0,1.1054777]
[1748351146414,1.71609371,109650.0,109640.0,1.01245184]
[1748351148324,1.35529371,109650.0,109640.0,1.01245184]
[1748351148524,1.71609371,109650.0,109640.0,1.01245184]
[1748351149124,1.53671664,109650.0,109640.0,1.01245174]
[1748351149322,1.53671664,109650.0,109640.0,1.1054776]
[1748351149525,1.53671664,109650.0,109640.0,1.06607335]
[1748351149931,1.11591664,109650.0,109640.0,1.06607335]
[1748351150226,1.53659664,109650.0,109640.0,1.06607335]
[1748351152620,1.53659664,109650.0,109640.0,1.06607272]
[1748351153027,1.53659664,109650.0,109640.0,1.17072681]
[1748351153424,1.34659664,109650.0,109640.0,1.17072681]
[1748351153623,1.52659664,109650.0,109640.0,1.17072681]
[1748351155425,1.52659664,109650.0,109640.0,1.10547749]
[1748351156730,0.61557664,109650.0,109640.0,1.46627749]
[1748351156934,0.06124514,109650.0,109640.0,1.74406152]
[1748351157235,0.05691985,109670.0,109660.0,0.1823111]
[1748351157427,0.00013692,109670.0,109660.0,1.67673445]
[1748351157622,0.3929,109690.0,109680.0,0.1822778]
[1748351157623,0.0321,109690.0,109680.0,0.1822778]
[1748351157933,0.2822446,109700.0,109690.0,0.1822612]
[1748351158123,0.7028446,109700.0,109690.0,1.238916]
[1748351158326,0.7028446,109700.0,109690.0,1.302016]
[1748351158634,0.7028446,109700.0,109690.0,1.30539882]
[1748351159131,0.7029646,109700.0,109690.0,1.30539882]
[1748351159326,0.7342646,109700.0,109690.0,1.30539882]
[1748351160030,0.7342646,109700.0,109690.0,1.32172985]
[1748351160227,0.3156646,109700.0,109690.0,1.32510957]
[1748351160534,0.7382646,109700.0,109690.0,1.4019534]
[1748351160742,0.7382646,109700.0,109690.0,1.39857368]
[1748351161027,0.7372646,109700.0,109690.0,1.39857368]
[1748351162826,0.7371846,109700.0,109690.0,1.39857368]
[1748351163923,0.7371846,109700.0,109690.0,1.39858918]
[1748351165347,0.74157642,109700.0,109690.0,1.39858918]
[1748351166039,0.74157642,109700.0,109690.0,1.35172985]
[1748351166433,0.74149642,109700.0,109690.0,1.35172985]
[1748351167439,0.32105642,109700.0,109690.0,1.35172985]
[1748351167639,0.74145642,109700.0,109690.0,1.35172985]
[1748351167934,0.74145642,109700.0,109690.0,1.39854487]
[1748351168526,0.74145642,109700.0,109690.0,1.35172985]
[1748351171227,0.74141642,109700.0,109690.0,1.35172985]
[1748351171429,0.7370246,109700.0,109690.0,1.35172985]
[1748351171638,0.13442,109700.0,109690.0,1.35172985]
[1748351171942,0.52348,109700.0,109690.0,1.44625847]
[1748351173132,0.10312,109700.0,109690.0,1.44625847]
[1748351173335,0.52244,109700.0,109690.0,1.44625847]
[1748351173533,0.10212,109700.0,109690.0,1.2516875]
[1748351173734,0.10212,109700.0,109690.0,1.45077842]
[1748351173735,0.102,109700.0,109690.0,1.45077842]
[1748351173943,0.10212,109700.0,109690.0,1.45077842]
[1748351174139,0.10012,109700.0,109690.0,1.45077842]
[1748351174334,0.10451182,109700.0,109690.0,1.45077842]
[1748351174536,0.10451182,109700.0,109690.0,1.44625847]
[1748351174733,0.10451182,109700.0,109690.0,1.45077842]
[1748351175036,0.10451182,109700.0,109690.0,2.12109842]
[1748351175232,0.00013692,109710.0,109700.0,0.1822447]
[1748351175538,0.001368,109720.0,109710.0,0.1822281]
[1748351175747,0.001368,109720.0,109710.0,1.33409675]
[1748351175944,0.001368,109720.0,109710.0,1.42972892]
[1748351176138,0.001488,109720.0,109710.0,1.42972892]
[1748351176847,0.001488,109720.0,109710.0,1.43309344]
[1748351177441,0.001488,109720.0,109710.0,1.42972892]
[1748351177744,0.75771312,109730.0,109720.0,0.1822114]
[1748351177946,0.71216382,109730.0,109720.0,1.15078913]
[1748351178938,0.71416382,109730.0,109720.0,1.15078913]
[1748351179738,0.71416382,109730.0,109720.0,1.34988005]
[1748351179937,0.71516382,109730.0,109720.0,1.34988005]
[1748351180145,0.71516382,109730.0,109720.0,1.44844005]
[1748351180338,0.29488382,109730.0,109720.0,1.44844005]
[1748351180545,0.71512382,109730.0,109720.0,1.44844005]
[1748351181144,0.66957482,109730.0,109720.0,1.44844005]
[1748351183446,0.66957482,109730.0,109720.0,1.45180614]
[1748351184348,0.66957482,109730.0,109720.0,1.49869573]
[1748351184539,0.66957482,109730.0,109720.0,1.49869402]
[1748351185453,0.66957482,109730.0,109720.0,1.50318219]
[1748351185955,0.66957482,109730.0,109720.0,1.30409127]
[1748351186155,0.66957482,109730.0,109720.0,1.50318219]
[1748351186545,0.66957482,109730.0,109720.0,1.50655953]
[1748351186748,0.66957482,109730.0,109720.0,1.50664199]
[1748351187653,0.66957482,109730.0,109720.0,1.37718199]
[1748351188660,0.66945482,109730.0,109720.0,1.41038199]
[1748351189355,0.00313692,109730.0,109720.0,1.35666822]
[1748351189545,0.0329,109740.0,109730.0,0.1821948]
[1748351189746,0.0329,109740.0,109730.0,1.46092345]
[1748351189949,0.03302,109740.0,109730.0,1.46767942]
[1748351191448,0.2471982,109740.0,109730.0,1.46767942]
[1748351192055,0.06502,109740.0,109730.0,1.46767942]
[1748351192455,0.06502,109740.0,109730.0,1.46867942]
[1748351193050,0.06502,109740.0,109730.0,1.51570574]
[1748351193251,0.2471982,109740.0,109730.0,1.46867942]
[1748351193456,0.2571982,109740.0,109730.0,1.46867942]
[1748351194558,0.07502,109740.0,109730.0,1.46867942]
[1748351194758,0.07941182,109740.0,109730.0,1.46867942]
[1748351194959,0.07941182,109740.0,109730.0,1.46863942]
[1748351196959,0.07941182,109740.0,109730.0,1.51567308]
[1748351197547,0.06941182,109740.0,109730.0,1.51567308]
[1748351198059,0.06941182,109740.0,109730.0,1.52470612]
[1748351198272,0.06941182,109740.0,109730.0,1.51795015]
[1748351199653,0.06941182,109740.0,109730.0,1.61073058]
[1748351200364,0.06941182,109740.0,109730.0,1.61075644]
[1748351201562,0.06941182,109740.0,109730.0,1.66439709]
[1748351201760,0.06941182,109740.0,109730.0,1.61075644]
[1748351201964,0.06941182,109740.0,109730.0,1.66443581]
[1748351202562,0.06941182,109740.0,109730.0,1.67603665]
[1748351202762,0.06941182,109740.0,109730.0,1.71503585]
[1748351203067,0.06941182,109740.0,109730.0,1.61065458]
[1748351204160,0.06941182,109740.0,109730.0,1.61033363]
[1748351204360,0.03741182,109740.0,109730.0,1.4615625]
[1748351204566,9.114e-05,109750.0,109740.0,0.1821781]
[1748351204868,0.03199114,109750.0,109740.0,1.39749715]
[1748351205161,0.03211114,109750.0,109740.0,1.39749715]
[1748351205869,0.03211114,109750.0,109740.0,1.39812062]
[1748351206457,0.06321114,109750.0,109740.0,1.39812062]
[1748351206865,0.06321114,109750.0,109740.0,1.20938679]
[1748351207067,0.03211114,109750.0,109740.0,1.39156489]
[1748351207574,0.03211114,109750.0,109740.0,1.39256489]
[1748351208066,0.06531114,109750.0,109740.0,1.39256489]
[1748351208265,0.06531114,109750.0,109740.0,1.40625498]
[1748351208767,0.06531114,109750.0,109740.0,1.41530344]
[1748351209371,0.06531114,109750.0,109740.0,1.51374344]
[1748351209666,0.06531114,109750.0,109740.0,1.51372582]
[1748351210065,0.06970296,109750.0,109740.0,1.51372582]
[1748351211261,0.06970296,109750.0,109740.0,1.4660136]
[1748351213967,0.06970296,109750.0,109740.0,1.51372494]
[1748351214374,0.06970296,109750.0,109740.0,1.31463402]
[1748351214562,0.06970296,109750.0,109740.0,1.51372494]
[1748351215457,0.06970296,109750.0,109740.0,1.56805524]
[1748351217171,0.06970296,109750.0,109740.0,1.56809562]
[1748351217677,0.06970296,109750.0,109740.0,1.74696529]
[1748351217972,0.06970296,109750.0,109740.0,1.64258402]
[1748351218565,0.06970296,109750.0,109740.0,1.76125055]
[1748351220786,0.06970296,109750.0,109740.0,1.7613218]
[1748351220976,0.06970296,109750.0,109740.0,2.1221218]
[1748351224267,0.25186456,109750.0,109740.0,2.12213077]
[1748351224464,0.10130296,109750.0,109740.0,2.15363077]
[1748351224870,0.10130296,109750.0,109740.0,2.02572021]
[1748351225966,0.10130296,109750.0,109740.0,2.1532914]
[1748351226169,0.06970296,109750.0,109740.0,2.1532914]
[1748351227181,0.06970296,109750.0,109740.0,1.99887753]
[1748351227775,0.06970296,109750.0,109740.0,1.79978661]
[1748351227977,0.06970296,109750.0,109740.0,1.99889747]
[1748351228981,0.06970296,109750.0,109740.0,1.90610516]
[1748351232785,0.06970296,109750.0,109740.0,1.80766516]
[1748351232981,0.06970296,109750.0,109740.0,1.90610516]
[1748351233571,0.06970296,109750.0,109740.0,1.99889747]
[1748351234379,0.06970296,109750.0,109740.0,1.27729747]
[1748351234578,0.06970296,109750.0,109740.0,1.99889747]
[1748351234988,0.06970296,109750.0,109740.0,1.96058577]
[1748351235876,0.06970296,109750.0,109740.0,1.86214577]
[1748351236077,0.28426486,109750.0,109740.0,1.56646417]
[1748351236285,0.72402486,109750.0,109740.0,0.98993295]
[1748351236583,0.95402486,109750.0,109740.0,1.03764305]
[1748351236790,0.70402486,109750.0,109740.0,1.03531586]
[1748351237084,1.03402486,109750.0,109740.0,1.02162577]
[1748351237288,1.03390486,109750.0,109740.0,1.02162577]
[1748351237999,1.03390486,109750.0,109740.0,1.0262507]
[1748351238181,0.61414486,109750.0,109740.0,1.0262507]
[1748351238490,1.03390486,109750.0,109740.0,1.0262507]
[1748351238687,1.03390486,109750.0,109740.0,1.01931046]
[1748351238887,0.79390486,109750.0,109740.0,1.01931046]
[1748351239579,0.79390486,109750.0,109740.0,1.06710187]
[1748351239979,0.79390486,109750.0,109740.0,1.01931977]
[1748351240183,0.79390486,109750.0,109740.0,1.08864999]
[1748351240890,0.79390486,109750.0,109740.0,0.72784999]
[1748351241487,0.79390486,109750.0,109740.0,0.62346543]
[1748351242787,0.79390486,109750.0,109740.0,0.71620015]
[1748351243489,0.79390486,109750.0,109740.0,0.71613692]
[1748351245295,0.37414486,109750.0,109740.0,0.71613692]
[1748351245588,0.79390486,109750.0,109740.0,0.71613692]
[1748351246294,0.79390486,109750.0,109740.0,0.6234022]
[1748351247395,0.79390486,109750.0,109740.0,0.6268239]
[1748351247999,0.37414486,109750.0,109740.0,1.18671482]
[1748351248295,0.70390486,109750.0,109740.0,1.45163103]
[1748351248695,0.70390486,109750.0,109740.0,1.55601559]
[1748351248991,0.70402486,109750.0,109740.0,1.25254011]
[1748351249199,0.70402486,109750.0,109740.0,1.45163103]
[1748351249995,0.70402486,109750.0,109740.0,1.55601559]
[1748351250203,0.28426486,109750.0,109740.0,1.55601559]
[1748351250590,0.70402486,109750.0,109740.0,1.56942098]
[1748351251397,0.70402486,109750.0,109740.0,1.57287112]
[1748351251594,0.70402486,109750.0,109740.0,1.53782361]
[1748351251897,0.70402486,109750.0,109740.0,1.53436339]
[1748351253401,0.52186296,109750.0,109740.0,1.53436339]
[1748351253590,0.10210296,109750.0,109740.0,1.53436339]
[1748351253787,0.70402476,109750.0,109740.0,1.33527247]
[1748351253987,0.67162476,109750.0,109740.0,1.53436339]
[1748351254695,0.67162476,109750.0,109740.0,1.5309029]
[1748351255183,0.67162476,109750.0,109740.0,1.53436386]
[1748351255386,0.67162476,109750.0,109740.0,1.5309029]
[1748351255787,0.67162476,109750.0,109740.0,1.58872932]
[1748351256585,0.67162476,109750.0,109740.0,1.49603756]
[1748351256791,0.67162476,109750.0,109740.0,1.60042212]
[1748351256991,6e-08,109750.0,109740.0,1.69536067]
[1748351257197,0.56909197,109770.0,109760.0,0.1821452]
[1748351257397,0.56909197,109770.0,109760.0,1.32086416]
[1748351257598,0.56909197,109770.0,109760.0,1.37033031]
[1748351258502,0.57009197,109770.0,109760.0,1.37033031]
[1748351258704,0.57021197,109770.0,109760.0,1.37033031]
[1748351260300,0.56921197,109770.0,109760.0,1.37033031]
[1748351260901,0.14945197,109770.0,109760.0,1.37033031]
[1748351261088,0.56917197,109770.0,109760.0,1.37033031]
[1748351262092,0.14945197,109770.0,109760.0,1.37033031]
[1748351262398,0.5675752,109790.0,109780.0,0.1821123]
[1748351262399,0.0565527,109790.0,109780.0,0.1821123]
[1748351262707,0.55158704,109800.0,109790.0,0.1820957]
[1748351262998,0.58348704,109800.0,109790.0,1.11433081]
[1748351263300,0.58348704,109800.0,109790.0,0.5449957]
[1748351263490,0.59348704,109800.0,109790.0,0.90925147]
[1748351263687,0.62398704,109800.0,109790.0,0.90925147]
[1748351263893,0.80606624,109800.0,109790.0,0.54845147]
[1748351264091,0.62398704,109800.0,109790.0,0.91286366]
[1748351264898,0.80606614,109800.0,109790.0,0.91286366]
[1748351265397,1.17606614,109800.0,109790.0,0.91286366]
[1748351265611,1.17606614,109800.0,109790.0,0.90825147]
[1748351266105,0.81598614,109800.0,109790.0,0.90824657]
[1748351266701,1.17598614,109800.0,109790.0,0.90824657]
[1748351267403,0.99390704,109800.0,109790.0,0.90824657]
[1748351267704,0.99390704,109800.0,109790.0,0.9047957]
[1748351268308,0.55681275,109830.0,109820.0,0.182046]
[1748351268309,0.95676,109830.0,109820.0,0.182046]
[1748351268603,1.0265694,109830.0,109820.0,0.522046]
[1748351268793,1.4297694,109830.0,109820.0,0.522046]
[1748351268994,1.4298894,109830.0,109820.0,0.522046]
[1748351269495,1.5281694,109830.0,109820.0,0.522046]
[1748351269899,1.5311694,109830.0,109820.0,0.522046]
[1748351270096,1.0132494,109830.0,109820.0,0.522046]
[1748351270304,1.5311694,109830.0,109820.0,0.522046]
[1748351270700,1.5331694,109830.0,109820.0,0.522046]
[1748351272003,1.0152494,109830.0,109820.0,0.522046]
[1748351272196,1.5330894,109830.0,109820.0,0.522046]
[1748351273602,1.82323232,109830.0,109820.0,0.34]
[1748351273900,1.55539232,109830.0,109820.0,0.34]
[1748351274107,0.182046,109820.0,109810.0,0.18219682]
[1748351274291,1.17573692,109820.0,109810.0,0.08013692]
[1748351274498,1.26680092,109820.0,109810.0,0.26219952]
[1748351275005,1.26680092,109820.0,109810.0,0.08013692]
[1748351275309,1.26780092,109820.0,109810.0,0.26219952]
[1748351275497,1.26880092,109820.0,109810.0,0.26219952]
[1748351276000,1.26880092,109820.0,109810.0,0.46219952]
[1748351276597,1.26880092,109820.0,109810.0,0.28013692]
[1748351276802,1.26880092,109820.0,109810.0,0.10013692]
[1748351277101,1.26880092,109820.0,109810.0,0.28219952]
[1748351277302,1.58751,109820.0,109810.0,0.28219952]
[1748351277504,1.58751,109820.0,109810.0,0.48219952]
[1748351280297,1.58751,109820.0,109810.0,0.09013692]
[1748351281002,2.03660092,109820.0,109810.0,0.09013692]
[1748351282309,1.78660092,109820.0,109810.0,0.09013692]
[1748351283001,1.42580092,109820.0,109810.0,0.09013692]
[1748351283202,2.14740092,109820.0,109810.0,0.09013692]
[1748351284110,1.62960092,109820.0,109810.0,0.09013692]
[1748351284313,2.15291274,109820.0,109810.0,0.09013692]
[1748351284609,2.15287274,109820.0,109810.0,0.09013692]